[Event "World Junior U20 Open 2018"]
[Site "Gebze"]
[Date "2018.09.10"]
[Round "6.57"]
[White "Nalbant, Tuna Onat"]
[Black "Secheres, Adrian-Simion"]
[Result "1/2-1/2"]
[ECO "C55"]
[WhiteElo "2241"]
[BlackElo "2408"]
[Annotator "NA"]
[PlyCount "96"]
[EventDate "2018.09.05"]
[EventType "swiss"]
[EventCountry "TUR"]
[SourceTitle "playchess.com"]
[Source "ChessBase"]
[SourceQuality "1"]
[TimeControl "40/5400+30:1800+30"]

1. e4 {[%emt 0:00:30]} e5 {[%emt 0:00:30]} 2. Nf3 {[%emt 0:00:30]} Nc6 {[%emt 0:00:30]} 3. Bc4 {[%emt 0:00:30]} Nf6 {[%emt 0:00:00]} 4. d3 {[%emt 0:00:30]} Be7 {[%emt 0:00:30]} 5. c3 {[%emt 0:00:30]} O-O {[%emt 0:00:30]} 6. Nbd2 {[%emt 0:01:30]} d6 {[%emt 0:01:00] C55: Two Knights: 4 d3, 4 d4 exd4 5 e5 and Max Lange Attack} 7. Bb3 {[%emt 0:03:30]} Na5 {[%emt 0:00:30]} 8. Bc2 {[%emt 0:01:30]} c5 {[%emt 0:00:30]} 9. Nf1 {[%emt 0:03:30]} Nc6 {[%emt 0:01:00]} 10. Ng3 {[%emt 0:02:30]} d5 {[%emt 0:01:30]} (10... Re8 11. O-O d5 12. Re1 d4 13. Bb3 Be6 14. Ng5 {1-0 (67) Neiksans,A (2631)-Ponomariov,R (2709) Tallinn 2016}) 11. Qe2 {[%emt 0:02:30]} Re8 {[%emt 0:06:30]} 12. O-O {[%emt 0:01:30]} h6 {[%emt 0:02:30]} 13. h3 {[%emt 0:11:30]} Be6 $146 {[%emt 0:04:30]} ({Predecessor:} 13... Bf8 14. a3 {½-½ (67) Rathnakaran,K (2386)-Ghosh,D (2288) Aurangabad 2011}) 14. Re1 {[%emt 0:08:30]} Qd7 {[%emt 0:09:30]} 15. Ba4 {[%emt 0:05:30]} Bd6 {[%emt 0:08:30]} 16. Nh4 {[%emt 0:06:30]} a6 {[%emt 0:10:30]} 17. Qf3 {[%emt 0:06:30]} b5 {[%emt 0:06:30]} 18. Bc2 Qd8 19. Ngf5 Bf8 20. g4 Nh7 21. Ng2 {[%emt 1:11:30]} d4 {[%emt 1:12:30]} 22. Rd1 {[%emt 0:13:48]} Ra7 {[%emt 0:02:30]} 23. a4 {[%emt 0:02:31]} Rc7 {[%emt 0:09:13]} 24. axb5 {[%emt 0:01:21]} axb5 {[%emt 0:00:30]} 25. Qg3 {[%emt 0:03:27]} f6 {[%emt 0:02:37]} 26. Bd2 {[%emt 0:07:00]} Qc8 {[%emt 0:04:01]} 27. Rdb1 {[%emt 0:02:37]} Nd8 {[%emt 0:00:49]} 28. b3 {[%emt 0:00:30]} dxc3 {[%emt 0:00:30]} 29. Bxc3 {[%emt 0:00:30]} b4 {[%emt 0:00:30]} 30. Bd2 {[%emt 0:00:30]} Nc6 {[%emt 0:00:30]} 31. Nge3 {[%emt 0:00:30]} g6 {[%emt 0:00:30]} 32. Nh4 {[%emt 0:00:30]} Nd4 {[%emt 0:00:30]} 33. Bd1 {[%emt 0:00:30]} Bf7 {[%emt 0:00:30]} 34. Nf3 {[%emt 0:00:30]} Rd8 {[%emt 0:00:30]} 35. Nxd4 {[%emt 0:00:00]} Rxd4 {[%emt 0:05:31]} 36. Be2 {[%emt 0:00:14]} Ng5 {[%emt 0:03:06]} 37. Bc1 {[%emt 0:00:12]} Rd6 {[%emt 0:01:07]} 38. h4 {[%emt 0:00:50]} Ne6 {[%emt 0:00:26]} 39. Nc4 {[%emt 0:01:15]} Nd4 {[%emt 0:01:01]} 40. Bd1 {[%emt 0:01:05]} Bxc4 {[%emt 0:00:00]} 41. dxc4 {[%emt 0:03:10]} g5 {[%emt 0:01:39]} 42. Be3 {[%emt 0:08:30]} Ne6 {[%emt 0:07:30]} 43. Be2 {[%emt 0:05:53]} Rcd7 {[%emt 0:09:31]} 44. h5 {[%emt 0:04:27]} Ra6 $11 {[%emt 0:05:40]} 45. Qf3 {[%emt 0:03:04]} Ng7 {[%emt 0:01:36]} 46. Rxa6 {[%emt 0:02:48]} Qxa6 {[%emt 0:00:02]} 47. Rd1 {[%emt 0:00:00]} Rxd1+ {[%emt 0:03:18]} 48. Bxd1 {[%emt 0:00:00]} Qd6 {[%emt 0:00:30]} 1/2-1/2

[Event "World Junior U20 Open 2018"]
[Site "Gebze"]
[Date "2018.09.10"]
[Round "6.58"]
[White "Zhao, Chenxi"]
[Black "Urazayev, Arystanbek"]
[Result "0-1"]
[ECO "C85"]
[WhiteElo "2275"]
[BlackElo "2333"]
[Annotator "NA"]
[PlyCount "61"]
[EventDate "2018.09.05"]
[EventType "swiss"]
[EventCountry "TUR"]
[SourceTitle "playchess.com"]
[Source "ChessBase"]
[SourceQuality "1"]
[TimeControl "40/5400+30:1800+30"]

1. e4 {[%emt 0:00:30]} e5 {[%emt 0:00:30]} 2. Nf3 {[%emt 0:00:30]} Nc6 {[%emt 0:00:30]} 3. Bb5 {[%emt 0:00:00]} a6 {[%emt 0:00:00]} 4. Ba4 {[%emt 0:00:00]} Nf6 {[%emt 0:00:00]} 5. O-O {[%emt 0:00:00]} Be7 {[%emt 0:00:00]} 6. Bxc6 {[%emt 0:00:00]} dxc6 {[%emt 0:01:00]} 7. d3 {[%emt 0:00:30]} Nd7 {[%emt 0:01:30]} 8. Nbd2 {[%emt 0:02:00]} O-O {[%emt 0:03:30]} 9. Nc4 {[%emt 0:00:30]} f6 {[%emt 0:01:30]} 10. Ne3 {[%emt 0:18:30] LiveBook: 7 Games} Nc5 {[%emt 0:02:30] C85: Closed Ruy Lopez: Deferred Exchange Variation} 11. b3 {[%emt 0:00:30]} (11. Nf5 Bxf5 12. exf5 Qd7 13. Nh4 Rfe8 14. Be3 Na4 15. Qg4 b5 16. b3 Nc3 17. Nf3 Nd5 {0-1 (67) Andreikin,D (2737)-Dominguez Perez,L (2726) Tbilisi 2015 CBM 165 [Pavlovic,M]}) 11... Rf7 {[%emt 0:00:30]} 12. Bb2 {[%emt 0:00:30]} Bf8 {[%emt 0:09:30]} 13. Kh1 $146 {[%emt 0:01:30]} ({Predecessor:} 13. Qe2 Ne6 14. Rfd1 Nd4 15. Nxd4 exd4 16. Nf1 f5 17. e5 f4 18. Nd2 {0-1 (59) Rogulski,W (2144)-Kurpiewski,S (2212) Mazowsze 2009}) 13... Ne6 {[%emt 0:03:30]} 14. Ng1 {[%emt 0:00:30]} c5 {[%emt 0:15:30]} 15. Ne2 {[%emt 0:00:00]} Qe8 {[%emt 0:01:30]} 16. f4 {[%emt 0:07:30]} exf4 {[%emt 0:00:30]} 17. Nxf4 $11 {[%emt 0:01:30]} Nxf4 18. Rxf4 Bd6 19. Rf1 Be5 20. Qc1 b5 21. a4 c6 22. axb5 cxb5 23. c4 Rb8 24. Rb1 Rfb7 25. Ba3 {[%emt 1:22:30]} Qh5 {[%emt 1:01:30]} 26. g3 {[%emt 0:00:30]} Bxg3 {[%emt 0:00:30]} 27. Qc2 {[%emt 0:02:26]} Bh3 {[%emt 0:10:30]} 28. Qd1 {[%emt 0:00:32]} Qxd1 {[%emt 0:02:30]} 29. Rfxd1 {[%emt 0:00:29]} Bf2 {[%emt 0:06:30]} 30. Bxc5 {[%emt 0:01:30]} bxc4 {[%emt 0:00:30]} 31. Rb2 {[%emt 0:02:28]} 0-1

[Event "World Junior U20 Open 2018"]
[Site "Gebze"]
[Date "2018.09.10"]
[Round "6.59"]
[White "Yilmaz, Goktan"]
[Black "Suleymenov, Alisher"]
[Result "0-1"]
[ECO "C19"]
[WhiteElo "2237"]
[BlackElo "2307"]
[Annotator "NA"]
[PlyCount "106"]
[EventDate "2018.09.05"]
[EventType "swiss"]
[EventCountry "TUR"]
[SourceTitle "playchess.com"]
[Source "ChessBase"]
[SourceQuality "1"]
[TimeControl "40/5400+30:1800+30"]

1. e4 {[%emt 0:00:30]} e6 {[%emt 0:00:30]} 2. d4 {[%emt 0:00:30]} d5 {[%emt 0:00:00]} 3. Nc3 {[%emt 0:00:00]} Bb4 {[%emt 0:00:00]} 4. e5 {[%emt 0:00:00]} Ne7 {[%emt 0:00:00]} 5. a3 {[%emt 0:00:30]} Bxc3+ {[%emt 0:00:00]} 6. bxc3 {[%emt 0:00:00]} c5 {[%emt 0:00:30]} 7. a4 {[%emt 0:00:00]} Qc7 {[%emt 0:02:30]} 8. Nf3 {[%emt 0:00:30]} h6 {[%emt 0:02:30]} 9. Bd3 {[%emt 0:05:00] C19: French: 3 Nc3 Bb4: Main line: 7 Nf3 and 7 a4} (9. Qd2 O-O 10. Bd3 b6 11. a5 Ba6 12. O-O Bxd3 13. cxd3 Nd7 14. h4 Nc6 15. axb6 axb6 16. Rb1 Ra4 {0-1 (71) Giri,A (2782)-So,W (2778) Leuven 2018}) 9... b6 {[%emt 0:01:30]} 10. O-O {[%emt 0:01:30]} Ba6 {[%emt 0:00:30]} 11. Ba3 {[%emt 0:04:30]} Bxd3 {[%emt 0:05:30]} 12. cxd3 {[%emt 0:03:30]} Nd7 {[%emt 0:00:30]} 13. Rc1 {[%emt 0:03:30]} O-O {[%emt 0:00:00]} 14. Re1 {[%emt 0:00:30]} Rfc8 {[%emt 0:19:30]} 15. Nh4 $146 {[%emt 0:04:30]} ({Predecessor:} 15. dxc5 bxc5 16. d4 Qa5 17. c4 Rab8 18. dxc5 Nxc5 19. Rf1 Rb7 20. cxd5 Nxd5 {½-½ (34) Ventimiglia,C (1669)-Ivanov,H (2122) IECG email 2001}) 15... Nf8 {[%emt 0:14:30]} 16. dxc5 {[%emt 0:05:30]} bxc5 {[%emt 0:00:30]} 17. d4 {[%emt 0:00:30]} Nd7 {[%emt 0:09:30]} 18. f4 {[%emt 0:02:30]} Rab8 {[%emt 0:05:30]} 19. Rf1 {[%emt 0:05:30]} Qb6 {[%emt 0:05:30]} 20. Qh5 {[%emt 0:24:30]} f5 $14 {[%emt 1:14:00]} (20... Qa6 $11) 21. exf6 {[%emt 1:10:30]} Nxf6 {[%emt 0:00:30]} 22. Qe5 {[%emt 0:00:30]} Nd7 {[%emt 0:00:30]} 23. Qe2 {[%emt 0:01:30]} Nf5 {[%emt 0:10:14]} 24. Nxf5 {[%emt 0:01:30]} exf5 {[%emt 0:01:54]} 25. Qd3 {[%emt 0:01:30]} cxd4 {[%emt 0:05:01]} 26. cxd4 {[%emt 0:00:30]} Nf6 {[%emt 0:00:05]} 27. Bc5 {[%emt 0:01:30]} Qe6 {[%emt 0:00:30]} 28. Bxa7 {[%emt 0:03:30]} Rxc1 {[%emt 0:00:06]} 29. Rxc1 {[%emt 0:00:30]} Ra8 {[%emt 0:00:30]} 30. Bc5 {[%emt 0:00:30]} Rxa4 {[%emt 0:01:47]} 31. Rb1 {[%emt 0:02:30]} Ra2 {[%emt 0:02:08]} 32. h3 {[%emt 0:03:28]} Ne4 {[%emt 0:03:30]} 33. Qb3 {[%emt 0:01:02]} Ra6 {[%emt 0:04:17]} 34. Rd1 {[%emt 0:05:48]} Kh7 {[%emt 0:00:21]} 35. Qb7 {[%emt 0:02:50]} Ra2 {[%emt 0:00:42]} 36. Qb3 {[%emt 0:03:09]} Rf2 {[%emt 0:00:48]} 37. Qb6 {[%emt 0:01:39]} Qf7 {[%emt 0:00:32]} 38. Re1 {[%emt 0:00:24]} Rc2 {[%emt 0:01:01]} 39. Qb3 {[%emt 0:01:42]} Rd2 {[%emt 0:00:30]} 40. Rd1 {[%emt 0:00:34]} Rf2 {[%emt 0:00:00]} 41. Qe3 {[%emt 0:04:24]} Qh5 {[%emt 0:10:34]} 42. Rc1 {[%emt 0:04:30]} Re2 {[%emt 0:13:21]} 43. Qf3 {[%emt 0:04:30]} Qxf3 {[%emt 0:00:10]} 44. gxf3 {[%emt 0:00:30]} Nd2 {[%emt 0:00:14]} 45. Rc3 {[%emt 0:00:30]} Kg6 {[%emt 0:02:00]} 46. Bd6 {[%emt 0:01:30]} Kh5 {[%emt 0:02:47]} 47. Rc7 {[%emt 0:01:30]} g5 {[%emt 0:03:58]} 48. fxg5 {[%emt 0:09:26]} hxg5 {[%emt 0:00:30]} 49. f4 {[%emt 0:00:30]} g4 {[%emt 0:00:30]} 50. Rh7+ {[%emt 0:02:53]} Kg6 {[%emt 0:00:02]} 51. Rh8 {[%emt 0:00:00]} g3 {[%emt 0:01:28]} 52. Rg8+ {[%emt 0:01:12]} Kf7 {[%emt 0:00:08]} 53. Rf8+ {[%emt 0:03:41]} Kg7 {[%emt 0:00:09]} 0-1

[Event "World Junior U20 Open 2018"]
[Site "Gebze"]
[Date "2018.09.10"]
[Round "6.62"]
[White "Cadilhac, Igor Tokuichi Kikuc"]
[Black "Ozturk, Efe Hakan"]
[Result "1-0"]
[ECO "B72"]
[WhiteElo "2286"]
[BlackElo "2065"]
[Annotator "NA"]
[PlyCount "59"]
[EventDate "2018.09.05"]
[EventType "swiss"]
[EventCountry "TUR"]
[SourceTitle "playchess.com"]
[Source "ChessBase"]
[SourceQuality "1"]
[TimeControl "40/5400+30:1800+30"]

1. e4 {[%emt 0:00:30]} c5 {[%emt 0:00:30]} 2. Nf3 {[%emt 0:00:00]} d6 {[%emt 0:00:30]} 3. d4 {[%emt 0:00:00]} cxd4 {[%emt 0:00:30]} 4. Nxd4 {[%emt 0:00:30]} Nf6 {[%emt 0:00:30]} 5. Nc3 {[%emt 0:00:30]} g6 {[%emt 0:00:00]} 6. Be3 {[%emt 0:00:00]} Bg7 {[%emt 0:00:00]} 7. Be2 {[%emt 0:00:30]} a6 {[%emt 0:02:30]} 8. f4 {[%emt 0:01:00]} O-O {[%emt 0:05:30]} 9. Nb3 {[%emt 0:06:30]} Nc6 {[%emt 0:07:30] LiveBook: 50 Games} 10. Bf3 {[%emt 0:00:30] B72: Sicilian Dragon: 6 Be3, lines with h3+Bc4 and sidelines} (10. O-O b5 11. Bf3 Bb7 12. Qe1 b4 13. Nd5 Nd7 14. Nxb4 Bxb2 15. Rb1 Bg7 16. Nd3 Rb8 17. c4 a5 18. a4 Ba6 19. Nd2 Rxb1 20. Qxb1 {½-½ (55) Negi,P (2664)-Hou,Y (2683) Saint Louis 2015}) 10... Qc7 {[%emt 0:05:30]} 11. g4 {[%emt 0:00:30]} b5 {[%emt 0:00:30]} 12. g5 {[%emt 0:13:30]} Nd7 {[%emt 0:02:30]} 13. Qd2 $146 {[%emt 0:03:30]} ({Predecessor:} 13. h4 Nb6 14. h5 Nb4 15. hxg6 hxg6 16. Bd4 e5 17. fxe5 Nc4 {1-0 (32) Akhayan,R (2305)-Hafner,C (2128) Belgium 2011}) 13... Nb6 {[%emt 0:09:30]} 14. Nd5 {[%emt 0:01:30]} Nxd5 {[%emt 0:00:30]} 15. exd5 {[%emt 0:00:30]} Nb8 {[%emt 0:02:30]} 16. Bd4 {[%emt 0:04:30]} Bxd4 {[%emt 0:15:30]} 17. Nxd4 {[%emt 0:00:30]} Nd7 {[%emt 0:03:30]} 18. h4 {[%emt 0:02:30]} Nb6 {[%emt 0:01:30]} 19. h5 {[%emt 0:01:30]} e5 {[%emt 0:17:30]} 20. dxe6 {[%emt 0:04:30]} Bb7 {[%emt 0:01:30]} 21. Bxb7 {[%emt 0:07:30]} Qxb7 {[%emt 0:00:30]} 22. O-O-O {[%emt 0:01:30]} Nc4 $18 {[%emt 0:09:31]} 23. Qh2 {[%emt 0:02:30]} Rac8 {[%emt 1:31:11]} 24. Kb1 {[%emt 0:53:00]} b4 {[%emt 0:00:30]} 25. exf7+ {[%emt 0:00:30]} Qxf7 {[%emt 0:00:30]} 26. hxg6 {[%emt 0:00:30]} Qxg6 {[%emt 0:00:30]} 27. f5 {[%emt 0:00:30]} Rxf5 {[%emt 0:00:30]} 28. Nxf5 {[%emt 0:00:30]} Qxf5 {[%emt 0:00:30]} 29. g6 {[%emt 0:08:30]} Rc7 {[%emt 0:08:01]} 30. gxh7+ {[%emt 0:03:30]} 1-0

[Event "World Junior U20 Open 2018"]
[Site "Gebze"]
[Date "2018.09.10"]
[Round "6.63"]
[White "Gulbeyaz, Emir"]
[Black "Ozgur, Tibet Kagan"]
[Result "0-1"]
[ECO "A05"]
[WhiteElo "2285"]
[BlackElo "2056"]
[Annotator "NA"]
[PlyCount "80"]
[EventDate "2018.09.05"]
[EventType "swiss"]
[EventCountry "TUR"]
[SourceTitle "playchess.com"]
[Source "ChessBase"]
[SourceQuality "1"]
[TimeControl "40/5400+30:1800+30"]

1. Nf3 {[%emt 0:00:30]} Nf6 {[%emt 0:01:30]} 2. g3 {[%emt 0:01:30]} b5 {[%emt 0:01:30]} 3. Bg2 {[%emt 0:01:30]} Bb7 {[%emt 0:00:30]} 4. Na3 {[%emt 0:00:00]} a6 {[%emt 0:06:30]} 5. c4 {[%emt 0:00:00]} e5 {[%emt 0:04:30]} 6. cxb5 {[%emt 0:08:30]} Bxa3 {[%emt 0:00:30] LiveBook: 7 Games} 7. bxa3 {[%emt 0:03:30]} O-O {[%emt 0:01:30]} 8. bxa6 {[%emt 0:00:30]} Nxa6 {[%emt 0:00:30]} 9. d3 {[%emt 0:00:30]} Re8 {[%emt 0:00:30]} 10. O-O {[%emt 0:00:30]} Nc5 {[%emt 0:13:30]} 11. Rb1 {[%emt 0:06:30]} Bc6 {[%emt 0:17:30]} 12. Bb2 {[%emt 0:08:30]} d6 {[%emt 0:01:30]} 13. Qc1 {[%emt 0:01:30]} Bd5 {[%emt 0:06:30]} (13... Nfd7 $11) 14. Nh4 $11 {[%emt 0:13:30]} (14. Nxe5 $5 Bxg2 15. Kxg2 $14) 14... Ra4 15. Bxd5 Nxd5 16. e4 Nf4 17. gxf4 Qxh4 18. Qd1 Qxf4 19. Bc1 Qh4 {[%emt 1:14:30]} 20. Rb4 {[%emt 1:09:00]} Ra6 {[%emt 0:00:30]} 21. f4 {[%emt 0:10:30]} Qh3 {[%emt 0:06:13]} 22. Rf3 {[%emt 0:00:30]} Qg4+ {[%emt 0:02:08]} 23. Kh1 {[%emt 0:01:30]} exf4 {[%emt 0:01:21]} 24. Rb2 {[%emt 0:00:30]} d5 {[%emt 0:03:27]} 25. Rg2 {[%emt 0:01:17]} Qh5 {[%emt 0:01:42]} 26. Bxf4 {[%emt 0:09:21]} dxe4 {[%emt 0:01:14]} 27. Rxg7+ {[%emt 0:02:17]} Kh8 {[%emt 0:02:39]} 28. dxe4 {[%emt 0:03:16]} Nxe4 {[%emt 0:02:33]} 29. Rg1 {[%emt 0:00:30]} Rf6 {[%emt 0:03:22]} 30. Rgf1 {[%emt 0:01:28]} c5 {[%emt 0:00:30]} 31. Qa1 {[%emt 0:00:30]} Kg8 {[%emt 0:00:41]} 32. Qc1 {[%emt 0:01:30]} Qd5 {[%emt 0:01:51]} 33. Rg1+ {[%emt 0:02:44]} Rg6 {[%emt 0:00:55]} 34. Rgf1 {[%emt 0:00:49]} Rf6 {[%emt 0:00:30]} 35. Rg1+ {[%emt 0:00:00]} Kh8 {[%emt 0:00:43]} 36. Qb2 {[%emt 0:00:37]} Rg8 {[%emt 0:00:31]} 37. Rxg8+ {[%emt 0:01:18]} Kxg8 {[%emt 0:00:30]} 38. Qb8+ {[%emt 0:00:30]} Kg7 {[%emt 0:00:30]} 39. Qb2 {[%emt 0:00:25]} c4 {[%emt 0:00:47]} 40. Be5 {[%emt 0:00:00]} Qd1+ {[%emt 0:00:30]} 0-1

[Event "World Junior U20 Open 2018"]
[Site "Gebze"]
[Date "2018.09.10"]
[Round "6.64"]
[White "Agdelen, Huseyin Can"]
[Black "Lin, Peisen"]
[Result "1-0"]
[ECO "B26"]
[WhiteElo "2280"]
[BlackElo "2034"]
[Annotator "NA"]
[PlyCount "71"]
[EventDate "2018.09.05"]
[EventType "swiss"]
[EventCountry "TUR"]
[SourceTitle "playchess.com"]
[Source "ChessBase"]
[SourceQuality "1"]
[TimeControl "40/5400+30:1800+30"]

1. e4 {[%emt 0:00:30]} e6 {[%emt 0:00:30]} 2. d3 {[%emt 0:00:30]} c5 {[%emt 0:01:30]} 3. g3 {[%emt 0:00:00]} Nc6 {[%emt 0:01:30]} 4. Bg2 {[%emt 0:02:30]} g6 {[%emt 0:00:30]} 5. Nc3 {[%emt 0:00:30]} Bg7 {[%emt 0:00:30]} 6. Be3 {[%emt 0:01:00]} d6 {[%emt 0:03:30]} 7. Qd2 {[%emt 0:01:30]} Nd4 {[%emt 0:00:30]} 8. Nce2 {[%emt 0:03:30]} Nxe2 {[%emt 0:02:30]} 9. Nxe2 {[%emt 0:00:30]} Bxb2 {[%emt 0:00:30]} 10. Rb1 {[%emt 0:00:00]} Bg7 {[%emt 0:00:30]} 11. O-O {[%emt 0:10:30]} Ne7 {[%emt 0:00:30]} 12. d4 {[%emt 0:28:30]} Qc7 {[%emt 0:03:30]} 13. Nc3 {[%emt 0:15:30]} Bd7 {[%emt 0:01:30]} 14. dxc5 {[%emt 0:07:30]} dxc5 {[%emt 0:00:30]} 15. e5 {[%emt 0:00:30]} Rb8 {[%emt 0:13:30]} 16. Ne4 {[%emt 0:04:30]} Bc6 $1 {[%emt 0:17:30]} 17. Qd6 $11 {[%emt 1:31:46]} ({But not} 17. Nxc5 Bxg2 18. Kxg2 b6 $17) 17... Qxd6 {[%emt 1:02:30]} 18. exd6 {[%emt 0:00:04]} Nd5 {[%emt 0:06:30]} 19. Bxc5 {[%emt 0:00:24]} Kd7 {[%emt 0:03:30]} 20. c4 {[%emt 0:01:44]} Nb6 {[%emt 0:03:30]} 21. Rfd1 {[%emt 0:00:59]} f5 {[%emt 0:07:26]} 22. Nd2 {[%emt 0:01:43]} Na4 {[%emt 0:02:16]} 23. Bxa7 {[%emt 0:01:11]} Ra8 {[%emt 0:00:20]} 24. Bxc6+ {[%emt 0:01:15]} Kxc6 {[%emt 0:00:30]} 25. Be3 {[%emt 0:00:04]} Nb2 {[%emt 0:01:23]} 26. Rdc1 {[%emt 0:01:05]} Kxd6 {[%emt 0:00:55]} 27. c5+ {[%emt 0:01:20]} Kc6 {[%emt 0:00:54]} 28. Rc2 {[%emt 0:00:50]} Na4 {[%emt 0:00:58]} 29. Nc4 {[%emt 0:00:22]} Ra6 {[%emt 0:00:59]} 30. Rd1 {[%emt 0:00:55]} Nc3 {[%emt 0:04:24]} 31. Rd6+ {[%emt 0:00:56]} Kc7 {[%emt 0:02:16]} 32. Bf4 {[%emt 0:00:38]} Rxa2 {[%emt 0:04:45]} 33. Rxa2 {[%emt 0:00:23]} Nxa2 {[%emt 0:00:31]} 34. Rd2+ {[%emt 0:00:32]} e5 {[%emt 0:00:31]} 35. Nxe5 {[%emt 0:00:30]} Ra8 {[%emt 0:00:30]} 36. Rd7+ {[%emt 0:00:00]} 1-0

[Event "World Junior U20 Open 2018"]
[Site "Gebze"]
[Date "2018.09.10"]
[Round "6.65"]
[White "Kilic, Gokturk Kagan"]
[Black "Tifferet, Shaked"]
[Result "0-1"]
[ECO "B07"]
[WhiteElo "1910"]
[BlackElo "2299"]
[Annotator "NA"]
[PlyCount "76"]
[EventDate "2018.09.05"]
[EventType "swiss"]
[EventCountry "TUR"]
[SourceTitle "playchess.com"]
[Source "ChessBase"]
[SourceQuality "1"]
[TimeControl "40/5400+30:1800+30"]

1. e4 {[%emt 0:00:30]} c5 {[%emt 0:00:30]} 2. c3 {[%emt 0:00:30]} d6 {[%emt 0:00:30]} 3. d4 {[%emt 0:01:30]} Nf6 {[%emt 0:00:30]} 4. Bd3 {[%emt 0:01:30]} g6 {[%emt 0:01:00]} 5. Nf3 {[%emt 0:07:30]} Bg7 {[%emt 0:00:30]} 6. O-O {[%emt 0:00:30]} O-O {[%emt 0:00:30]} 7. h3 {[%emt 0:02:30]} d5 {[%emt 0:01:00]} 8. e5 {[%emt 0:08:30]} Ne4 {[%emt 0:00:30]} 9. Qe2 {[%emt 0:02:30]} Bf5 {[%emt 0:04:30]} 10. Nbd2 {[%emt 0:00:30]} Nxd2 {[%emt 0:00:30]} 11. Bxd2 {[%emt 0:00:30]} Bxd3 {[%emt 0:05:30]} 12. Qxd3 {[%emt 0:00:30]} Qb6 {[%emt 0:01:30]} 13. dxc5 {[%emt 0:20:00]} Qxc5 {[%emt 0:06:30]} 14. Be3 {[%emt 0:03:30]} Qc6 {[%emt 0:08:30]} 15. Rfd1 {[%emt 0:04:30]} e6 {[%emt 0:04:30]} 16. Nd4 {[%emt 0:04:30]} Qc8 {[%emt 0:13:30]} 17. Rac1 {[%emt 0:07:30]} a6 $16 {[%emt 0:00:30]} (17... Bxe5 $11 {bleibt in der Remisbreite.} 18. c4 Nc6) 18. a4 b5 19. f4 bxa4 20. c4 Qb7 21. cxd5 Qxd5 {[%emt 1:00:30]} 22. Qc2 {[%emt 1:23:11]} Qb7 {[%emt 0:06:30]} 23. Qxa4 {[%emt 0:06:11]} a5 {[%emt 0:10:30]} 24. Nb5 {[%emt 0:03:03]} Na6 {[%emt 0:02:30]} 25. Rd6 {[%emt 0:01:28]} Nb4 {[%emt 0:02:30]} 26. Nc7 {[%emt 0:03:45]} Qe4 {[%emt 0:03:42]} 27. Rc3 {[%emt 0:04:09]} Rac8 {[%emt 0:01:59]} 28. Qxa5 {[%emt 0:01:02]} Nc2 {[%emt 0:00:32]} 29. Bd2 {[%emt 0:00:48]} Nd4 {[%emt 0:01:14]} 30. Kh1 {[%emt 0:00:53]} Ne2 {[%emt 0:00:30]} 31. Rdc6 {[%emt 0:00:28]} Nxc3 {[%emt 0:04:22]} 32. Rxc3 {[%emt 0:00:05]} Rfd8 {[%emt 0:03:07]} 33. Be3 {[%emt 0:00:30]} h5 {[%emt 0:02:02]} 34. Qa6 {[%emt 0:01:19]} Rxc7 {[%emt 0:00:30]} 35. Rxc7 {[%emt 0:00:09]} Qxe3 {[%emt 0:00:28]} 36. Qf1 {[%emt 0:00:21]} Bh6 {[%emt 0:02:00]} 37. Rc4 {[%emt 0:00:30]} Qb3 {[%emt 0:00:12]} 38. Rc1 {[%emt 0:00:27]} Qxb2 {[%emt 0:00:27]} 0-1

[Event "World Junior U20 Open 2018"]
[Site "Gebze"]
[Date "2018.09.10"]
[Round "6.66"]
[White "Pigeat, Alexandre"]
[Black "Petkov, Momchil"]
[Result "1-0"]
[ECO "A85"]
[WhiteElo "2347"]
[BlackElo "2163"]
[Annotator "NA"]
[PlyCount "63"]
[EventDate "2018.09.05"]
[EventType "swiss"]
[EventCountry "TUR"]
[SourceTitle "playchess.com"]
[Source "ChessBase"]
[SourceQuality "1"]
[TimeControl "40/5400+30:1800+30"]

1. d4 {[%emt 0:00:30]} f5 {[%emt 0:00:30]} 2. c4 {[%emt 0:02:30]} Nf6 {[%emt 0:00:00]} 3. Bg5 {[%emt 0:00:30]} e6 {[%emt 0:04:00]} 4. Nc3 {[%emt 0:01:30]} Bb4 {[%emt 0:03:30]} 5. e3 {[%emt 0:00:30]} O-O {[%emt 0:03:30]} 6. Bd3 {[%emt 0:03:30]} h6 {[%emt 0:07:30]} 7. Bxf6 {[%emt 0:00:30]} Qxf6 {[%emt 0:00:30]} 8. Nge2 {[%emt 0:00:30]} c6 {[%emt 0:01:30]} 9. O-O {[%emt 0:00:30]} d5 {[%emt 0:00:30]} 10. f3 {[%emt 0:00:30]} Nd7 {[%emt 0:15:30]} 11. Qb3 {[%emt 0:04:30]} Bd6 {[%emt 0:05:30]} 12. e4 {[%emt 0:05:30]} fxe4 {[%emt 0:05:30]} 13. fxe4 {[%emt 0:00:30]} Qg5 {[%emt 0:00:30]} 14. Rxf8+ {[%emt 0:05:30]} Nxf8 {[%emt 0:00:30]} 15. Rd1 {[%emt 0:03:30]} e5 {[%emt 0:12:30] [#]} 16. c5 $1 {[%emt 0:04:30]} exd4 {[%emt 0:06:30]} 17. cxd6 {[%emt 0:05:30]} dxc3 {[%emt 0:00:30]} 18. exd5 {[%emt 0:02:30]} cxd5 $16 {[%emt 0:07:30]} (18... cxb2 $14 19. dxc6+ (19. Qxb2 cxd5 20. Qc1 Be6 $11) 19... Be6 20. Qxb2 (20. Qxb7 Bd5 $11) 20... bxc6) 19. Nxc3 Bg4 20. Nxd5 Kh8 21. Ne7 Be6 22. Qxb7 {[%emt 0:54:00]} Rd8 {[%emt 1:29:27]} 23. Qe4 {[%emt 0:00:30]} Qc5+ {[%emt 0:00:30]} 24. Kh1 {[%emt 0:00:30]} Qxd6 {[%emt 0:08:10]} 25. Rf1 {[%emt 0:00:30]} g6 {[%emt 0:01:42]} 26. Rxf8+ {[%emt 0:05:30]} Rxf8 {[%emt 0:00:05]} 27. Nxg6+ {[%emt 0:03:30]} Kg7 {[%emt 0:00:40]} 28. Nxf8 {[%emt 0:00:30]} Kxf8 {[%emt 0:00:00]} 29. Qa8+ {[%emt 0:02:30]} Kg7 {[%emt 0:00:26]} 30. Qxa7+ {[%emt 0:00:30]} Bf7 {[%emt 0:00:15]} 31. Bf1 {[%emt 0:03:30]} Qf6 {[%emt 0:01:11]} 32. Bc4 {[%emt 0:00:30]} 1-0